[Event "GER-ch Youth-U12 2024"]
[Site "Willingen"]
[Date "2024.05.22"]
[Round "5"]
[White "Rau, Eduard"]
[Black "Heins, Simon"]
[Result "1-0"]
[ECO "B51"]
[WhiteElo "1756"]
[BlackElo "1626"]
[Annotator "NA RC"]
[PlyCount "61"]
[EventDate "2022.06.05"]
[EventType "swiss"]
[EventRounds "9"]
[EventCountry "GER"]
[SourceTitle "playchess.com"]
[Source "ChessBase"]
[SourceQuality "1"]
[TimeControl "40/4500+30:900+30"]

1. e4 {[%emt 0:00:00]} c5 {[%emt 0:00:00]} 2. Nf3 {[%emt 0:00:00]} Nc6 {[%emt 0:00:00]} 3. Bb5 {[%emt 0:00:00]} d6 {[%emt 0:00:00]} 4. O-O {[%emt 0:00:00]} Nf6 {[%emt 0:00:00]} 5. Re1 {[%emt 0:00:00]} Bg4 {[%emt 0:00:00]} 6. c3 {[%emt 0:00:00]} Qb6 {[%emt 0:00:00]} 7. Ba4 {[%emt 0:00:00]} e5 {[%emt 0:00:00]} 8. d3 {[%emt 0:00:00]} Be7 {[%emt 0:00:00]} 9. h3 {[%emt 0:00:00]} Bh5 {[%emt 0:00:00]} 10. Nbd2 {[%emt 0:00:00]} h6 {[%emt 0:00:00]} 11. Nf1 {[%emt 0:00:00]} g5 {[%emt 0:00:00]} 12. Ng3 {[%emt 0:00:00]} Bg6 {[%emt 0:00:00]} 13. Be3 {[%emt 0:02:20]} O-O-O {[%emt 0:02:12]} 14. b4 {[%emt 0:00:22]} Qc7 {[%emt 0:00:52]} 15. Rb1 {[%emt 0:09:26]} cxb4 {[%emt 0:06:44]} 16. cxb4 {[%emt 0:00:19]} d5 {[%emt 0:01:37]} 17. b5 {[%emt 0:07:20]} b6 {[%emt 0:05:11]} 18. Rc1 {[%emt 0:05:40]} Rd6 {[%emt 0:08:12]} 19. Nxe5 {[%emt 0:02:36]} Nxe5 {[%emt 0:01:26]} 20. Rxc7+ {[%emt 0:00:10]} Kxc7 {[%emt 0:00:01]} 21. Qc2+ {[%emt 0:00:13]} Kd7 {[%emt 0:05:39]} 22. Qc3 {[%emt 0:03:02]} d4 {[%emt 0:01:27]} 23. Bxd4 {[%emt 0:00:14]} Rc8 {[%emt 0:00:08]} 24. Qa1 {[%emt 0:00:58]} Nxd3 {[%emt 0:07:28]} 25. e5 {[%emt 0:04:07]} Nxe1 {[%emt 0:04:38]} 26. exd6 {[%emt 0:01:03]} Nd3 {[%emt 0:01:19]} 27. dxe7 {[%emt 0:00:55]} Rc1+ {[%emt 0:00:23]} 28. Qxc1 {[%emt 0:00:01]} Nxc1 {[%emt 0:00:02]} 29. Bxf6 {[%emt 0:00:10]} Nxa2 {[%emt 0:00:14]} 30. Bb3 {[%emt 0:00:11]} Nb4 {[%emt 0:00:34]} 31. Nf5 {[%emt 0:00:25]} 1-0

[Event "GER-ch Youth-U12 2024"]
[Site "Willingen"]
[Date "2024.05.22"]
[Round "5"]
[White "Lanert, Theodor"]
[Black "Lee, Ho In"]
[Result "1/2-1/2"]
[ECO "B28"]
[WhiteElo "1742"]
[BlackElo "1668"]
[Annotator "NA RC"]
[PlyCount "113"]
[EventDate "2022.06.05"]
[EventType "swiss"]
[EventRounds "9"]
[EventCountry "GER"]
[SourceTitle "playchess.com"]
[Source "ChessBase"]
[SourceQuality "1"]
[TimeControl "40/4500+30:900+30"]

1. e4 {[%emt 0:00:00]} c5 {[%emt 0:00:00]} 2. Nf3 {[%emt 0:00:00]} a6 {[%emt 0:00:00]} 3. d4 {[%emt 0:00:00]} cxd4 {[%emt 0:00:00]} 4. Nxd4 {[%emt 0:00:00]} e5 {[%emt 0:00:00]} 5. Nb3 {[%emt 0:00:00]} Nf6 {[%emt 0:00:00]} 6. Bd3 {[%emt 0:00:00]} Nc6 {[%emt 0:00:00]} 7. Nc3 {[%emt 0:00:17]} Bb4 {[%emt 0:00:00]} 8. Bd2 {[%emt 0:00:00]} O-O {[%emt 0:00:00]} 9. O-O {[%emt 0:00:00]} d6 {[%emt 0:00:00]} 10. a3 {[%emt 0:00:00]} Bxc3 {[%emt 0:00:00]} 11. Bxc3 {[%emt 0:00:00]} Qc7 {[%emt 0:00:00]} 12. h3 {[%emt 0:00:00]} b5 {[%emt 0:00:00]} 13. f4 {[%emt 0:00:00]} Bb7 {[%emt 0:04:54]} 14. Qe1 {[%emt 0:00:00]} Rae8 {[%emt 0:08:50]} 15. Qh4 {[%emt 0:02:57]} Qd8 {[%emt 0:25:12]} 16. Rae1 {[%emt 0:06:07]} Nd7 {[%emt 0:29:36]} 17. Qg3 {[%emt 0:14:41]} Nf6 {[%emt 0:04:06]} 18. Qf3 {[%emt 0:06:20]} Kh8 {[%emt 0:07:31]} 19. g4 {[%emt 0:03:47]} Ng8 {[%emt 0:00:46]} 20. g5 {[%emt 0:00:54]} exf4 {[%emt 0:03:12]} 21. Qxf4 {[%emt 0:00:31]} Nge7 {[%emt 0:00:23]} 22. h4 {[%emt 0:03:10]} Ng6 {[%emt 0:00:12]} 23. Qg3 {[%emt 0:00:01]} Nge5 {[%emt 0:00:13]} 24. Rf5 {[%emt 0:07:12]} Bc8 {[%emt 0:00:42]} 25. Rf4 {[%emt 0:01:17]} Qd7 {[%emt 0:00:40]} 26. Nd4 {[%emt 0:03:11]} Nxd4 {[%emt 0:01:21]} 27. Bxd4 {[%emt 0:00:05]} Qh3 {[%emt 0:00:10]} 28. Qxh3 {[%emt 0:01:47]} Bxh3 {[%emt 0:00:04]} 29. Kh2 {[%emt 0:00:01]} Bd7 {[%emt 0:00:49]} 30. Ref1 {[%emt 0:01:02]} Kg8 {[%emt 0:00:24]} 31. Kg3 {[%emt 0:01:49]} Bc6 {[%emt 0:00:46]} 32. h5 {[%emt 0:04:28]} Re6 {[%emt 0:01:01]} 33. Bxe5 {[%emt 0:12:20]} dxe5 {[%emt 0:00:06]} 34. R4f2 {[%emt 0:04:19]} Rd6 {[%emt 0:00:48]} 35. h6 {[%emt 0:04:19]} gxh6 {[%emt 0:00:37]} 36. Rf6 {[%emt 0:00:09]} Rfd8 {[%emt 0:00:34]} 37. gxh6 {[%emt 0:00:34]} Rxf6 {[%emt 0:00:31]} 38. Rxf6 {[%emt 0:00:04]} Bb7 {[%emt 0:00:08]} 39. Kg4 {[%emt 0:01:14]} Bc8+ {[%emt 0:00:29]} 40. Kg5 {[%emt 0:00:38]} Kf8 {[%emt 0:00:39]} 41. a4 {[%emt 0:23:11]} bxa4 {[%emt 0:00:00]} 42. Bc4 {[%emt 0:00:00]} Rd7 {[%emt 0:00:00]} 43. c3 {[%emt 0:00:00]} Rc7 {[%emt 0:05:34]} 44. Ba2 {[%emt 0:00:00]} a5 {[%emt 0:02:04]} 45. Rb6 {[%emt 0:01:26]} Ke7 {[%emt 0:03:48]} 46. Bd5 {[%emt 0:03:10]} a3 {[%emt 0:03:14]} 47. bxa3 {[%emt 0:01:32]} Rxc3 {[%emt 0:01:12]} 48. Rb3 {[%emt 0:00:03]} Rc5 {[%emt 0:03:19]} 49. Rf3 {[%emt 0:01:46]} Be6 {[%emt 0:00:00]} 50. Bxe6 {[%emt 0:00:01]} Kxe6 {[%emt 0:00:00]} 51. Rf6+ {[%emt 0:00:03]} Ke7 {[%emt 0:00:00]} 52. Ra6 {[%emt 0:00:15]} Rb5 {[%emt 0:01:42]} 53. Kf5 {[%emt 0:01:09]} Rc5 {[%emt 0:00:49]} 54. Ra7+ {[%emt 0:00:37]} Kf8 {[%emt 0:00:26]} 55. Ra8+ {[%emt 0:00:29]} Ke7 {[%emt 0:00:07]} 56. Ra7+ {[%emt 0:00:52]} Kf8 {[%emt 0:00:11]} 57. Ra8+ {[%emt 0:00:40]} 1/2-1/2

[Event "GER-ch Youth-U12 2024"]
[Site "Willingen"]
[Date "2024.05.22"]
[Round "5"]
[White "Schulz, Robin"]
[Black "Marynychenko, Yehor"]
[Result "0-1"]
[ECO "B22"]
[WhiteElo "1730"]
[BlackElo "1896"]
[Annotator "NA RC"]
[PlyCount "52"]
[EventDate "2022.06.05"]
[EventType "swiss"]
[EventRounds "9"]
[EventCountry "GER"]
[SourceTitle "playchess.com"]
[Source "ChessBase"]
[SourceQuality "1"]
[TimeControl "40/4500+30:900+30"]

1. e4 {[%emt 0:00:00]} c5 {[%emt 0:00:00]} 2. Nf3 {[%emt 0:00:00]} Nc6 {[%emt 0:00:00]} 3. c3 {[%emt 0:00:00]} d5 {[%emt 0:00:00]} 4. exd5 {[%emt 0:00:00]} Qxd5 {[%emt 0:00:00]} 5. d4 {[%emt 0:00:00]} cxd4 {[%emt 0:00:00]} 6. cxd4 {[%emt 0:00:00]} e6 {[%emt 0:00:00]} 7. Nc3 {[%emt 0:00:00]} Bb4 {[%emt 0:00:00]} 8. Be2 {[%emt 0:00:00]} Nf6 {[%emt 0:00:00]} 9. O-O {[%emt 0:00:00]} Bxc3 {[%emt 0:00:00]} 10. bxc3 {[%emt 0:00:00]} O-O {[%emt 0:00:00]} 11. Bb2 {[%emt 0:00:00]} Rd8 {[%emt 0:00:00]} 12. Qc2 {[%emt 0:00:00]} b6 {[%emt 0:03:49]} 13. c4 {[%emt 0:00:00]} Qd6 {[%emt 0:00:28]} 14. Rfd1 {[%emt 0:12:01]} Bb7 {[%emt 0:06:55]} 15. Ne5 {[%emt 0:13:30]} Qe7 {[%emt 0:07:52]} 16. f4 {[%emt 0:02:16]} Rac8 {[%emt 0:03:16]} 17. a4 {[%emt 0:03:53]} h6 $11 {[%emt 0:13:22]} 18. Ra3 {[%emt 0:06:23]} Nxd4 {[%emt 0:01:59]} 19. Bxd4 {[%emt 0:12:17]} Qxa3 {[%emt 0:00:11]} 20. Rd3 {[%emt 0:00:20]} Qe7 {[%emt 0:00:20]} 21. Qb2 {[%emt 0:01:18]} Ne4 {[%emt 0:15:51]} 22. Rh3 {[%emt 0:07:04]} Rxd4 {[%emt 0:03:44]} 23. Qxd4 {[%emt 0:01:48]} Rd8 {[%emt 0:00:13]} 24. Qe3 {[%emt 0:02:25]} Qb4 {[%emt 0:00:30]} 25. Bd3 {[%emt 0:03:31]} Qb1+ {[%emt 0:06:08]} 26. Bf1 {[%emt 0:00:57]} Nd2 {[%emt 0:00:42]} 0-1

[Event "GER-ch Youth-U12 2024"]
[Site "Willingen"]
[Date "2024.05.22"]
[Round "5"]
[White "Sun, Christopher"]
[Black "Hoppe, Arthur"]
[Result "0-1"]
[ECO "B00"]
[WhiteElo "1714"]
[BlackElo "1859"]
[Annotator "NA RC"]
[PlyCount "118"]
[EventDate "2022.06.05"]
[EventType "swiss"]
[EventRounds "9"]
[EventCountry "GER"]
[SourceTitle "playchess.com"]
[Source "ChessBase"]
[SourceQuality "1"]
[TimeControl "40/4500+30:900+30"]

1. e4 {[%emt 0:00:00]} Nc6 {[%emt 0:00:00]} 2. d4 {[%emt 0:00:00]} e5 {[%emt 0:00:00]} 3. dxe5 {[%emt 0:00:00]} Nxe5 {[%emt 0:00:00]} 4. f4 {[%emt 0:00:00]} Nc6 {[%emt 0:00:00]} 5. Nf3 {[%emt 0:00:00]} Bc5 {[%emt 0:00:00]} 6. Nc3 {[%emt 0:00:00] B00: Queen's Fianchetto Defence, Nimzowitsch Defence.} a6 {[%emt 0:00:00]} 7. Bc4 {[%emt 0:00:00]} d6 {[%emt 0:00:00]} 8. h3 {[%emt 0:01:52]} h6 {[%emt 0:00:28]} 9. a3 {[%emt 0:03:18]} Bd7 {[%emt 0:36:24]} 10. Qd3 {[%emt 0:14:37]} Nf6 {[%emt 0:00:00]} 11. Be3 {[%emt 0:00:36]} Bxe3 {[%emt 0:00:00]} 12. Qxe3 {[%emt 0:00:09]} Qe7 {[%emt 0:00:00]} 13. O-O {[%emt 0:04:36]} O-O {[%emt 0:00:00]} 14. Rae1 {[%emt 0:06:51]} Rae8 {[%emt 0:00:00]} 15. Qd2 {[%emt 0:04:05]} Bc8 {[%emt 0:10:01]} 16. Nd5 {[%emt 0:09:41]} Qd8 {[%emt 0:00:12]} 17. Nxf6+ {[%emt 0:03:50]} Qxf6 {[%emt 0:00:23]} 18. c3 {[%emt 0:02:33]} Na5 {[%emt 0:09:40]} 19. Ba2 {[%emt 0:05:44]} Qd8 {[%emt 0:07:27]} 20. g4 {[%emt 0:13:29]} Be6 {[%emt 0:00:15]} 21. Bxe6 {[%emt 0:01:11]} Rxe6 {[%emt 0:00:57]} 22. f5 {[%emt 0:01:10]} Ree8 {[%emt 0:00:06]} 23. Kh1 {[%emt 0:03:55]} c6 {[%emt 0:02:40]} 24. Rg1 {[%emt 0:02:13]} Nc4 {[%emt 0:00:14]} 25. Qh2 {[%emt 0:02:26]} Ne5 {[%emt 0:00:41]} 26. Nxe5 {[%emt 0:00:29]} Rxe5 {[%emt 0:00:05]} 27. Qf4 {[%emt 0:02:30]} Qh4 {[%emt 0:00:45]} 28. Kh2 {[%emt 0:00:29]} Rfe8 {[%emt 0:00:27]} 29. Rg3 {[%emt 0:01:53]} Qe7 {[%emt 0:02:28]} 30. g5 {[%emt 0:01:01]} h5 {[%emt 0:05:20]} 31. f6 {[%emt 0:00:39]} Qe6 {[%emt 0:02:49]} 32. fxg7 {[%emt 0:01:01]} Qg6 {[%emt 0:01:10]} 33. Rf3 {[%emt 0:01:05]} Rxe4 {[%emt 0:02:46]} 34. Rxe4 {[%emt 0:00:07]} Rxe4 {[%emt 0:00:03]} 35. Qf6 {[%emt 0:00:41]} Re2+ {[%emt 0:00:28]} 36. Kh1 {[%emt 0:00:27]} Re6 {[%emt 0:02:05]} 37. Qxg6 {[%emt 0:00:30]} Rxg6 {[%emt 0:00:06]} 38. h4 {[%emt 0:00:22]} Kxg7 {[%emt 0:00:05]} 39. Kg2 {[%emt 0:00:24]} Re6 {[%emt 0:00:04]} 40. Rf2 {[%emt 0:00:59]} d5 {[%emt 0:00:26]} 41. Kg3 {[%emt 0:00:00]} Re3+ {[%emt 0:00:00]} 42. Kg2 {[%emt 0:00:00]} Re4 {[%emt 0:00:00]} 43. Kg3 {[%emt 0:00:00]} d4 {[%emt 0:00:00]} 44. cxd4 {[%emt 0:00:00]} Rxd4 {[%emt 0:00:00]} 45. Kh3 {[%emt 0:00:00]} Rd3+ $19 {[%emt 0:00:00]} 46. Kh2 {[%emt 0:00:00]} Rb3 {[%emt 0:00:00]} 47. Kg2 {[%emt 0:00:00]} c5 {[%emt 0:00:00]} 48. Kh2 {[%emt 0:03:32]} b5 {[%emt 0:00:00]} 49. Rc2 {[%emt 0:06:29]} c4 {[%emt 0:00:00]} 50. Kg2 {[%emt 0:00:53]} Kg6 {[%emt 0:00:00]} 51. Rf2 {[%emt 0:03:36]} Kg7 {[%emt 0:00:00]} 52. Rc2 {[%emt 0:00:37]} Rd3 {[%emt 0:00:00]} 53. a4 {[%emt 0:01:24]} Rd4 {[%emt 0:00:00]} 54. axb5 {[%emt 0:00:33]} axb5 {[%emt 0:00:00]} 55. Kg3 {[%emt 0:00:27]} b4 {[%emt 0:00:00]} 56. Kh3 {[%emt 0:00:46]} b3 {[%emt 0:00:00]} 57. Re2 {[%emt 0:01:30]} Rd1 {[%emt 0:00:00]} 58. Re4 {[%emt 0:01:55]} c3 {[%emt 0:00:00]} 59. bxc3 {[%emt 0:00:15]} b2 {[%emt 0:00:00]} 0-1

[Event "GER-ch Youth-U12 2024"]
[Site "Willingen"]
[Date "2024.05.22"]
[Round "5"]
[White "Hellriegel, Hannes"]
[Black "Schmidt, Jossip"]
[Result "0-1"]
[ECO "B38"]
[WhiteElo "1701"]
[BlackElo "1603"]
[Annotator "NA"]
[PlyCount "116"]
[EventDate "2022.06.05"]
[EventType "swiss"]
[EventRounds "9"]
[EventCountry "GER"]
[SourceTitle "playchess.com"]
[Source "ChessBase"]
[SourceQuality "1"]
[TimeControl "40/4500+30:900+30"]

1. e4 {[%emt 0:00:00]} c5 {[%emt 0:00:00]} 2. Nf3 {[%emt 0:00:00]} Nc6 {[%emt 0:00:00]} 3. d4 {[%emt 0:00:00]} cxd4 {[%emt 0:00:00]} 4. Nxd4 {[%emt 0:00:00]} g6 {[%emt 0:00:00]} 5. c4 {[%emt 0:00:00]} Bg7 {[%emt 0:00:00]} 6. Be3 {[%emt 0:00:00]} Nf6 {[%emt 0:00:00]} 7. Nc3 {[%emt 0:00:00]} O-O {[%emt 0:00:00]} 8. Nc2 {[%emt 0:00:00]} d6 {[%emt 0:00:00]} 9. Be2 {[%emt 0:00:00]} Bd7 {[%emt 0:00:00]} 10. O-O {[%emt 0:00:00]} h6 {[%emt 0:00:00]} 11. Qd2 {[%emt 0:00:00]} Kh7 {[%emt 0:02:25]} 12. h3 {[%emt 0:01:19]} Ng8 {[%emt 0:06:25]} 13. Rad1 {[%emt 0:08:30]} f5 {[%emt 0:02:53]} 14. Bd3 {[%emt 0:08:12]} Ne5 {[%emt 0:02:06]} 15. exf5 {[%emt 0:08:47]} Bxf5 {[%emt 0:04:20]} 16. Bxf5 {[%emt 0:04:54]} Rxf5 {[%emt 0:02:06]} 17. Qe2 {[%emt 0:10:33]} Rc8 {[%emt 0:05:05]} 18. Nd4 {[%emt 0:06:46]} Rf7 {[%emt 0:00:57]} 19. c5 {[%emt 0:03:03]} dxc5 {[%emt 0:02:02]} 20. Nb3 {[%emt 0:01:51]} Qe8 {[%emt 0:10:54]} 21. Nxc5 {[%emt 0:01:49]} b6 {[%emt 0:02:16]} 22. N5e4 {[%emt 0:02:17]} Nc4 {[%emt 0:00:55]} 23. Bc1 {[%emt 0:06:26]} Nf6 {[%emt 0:04:38]} 24. Nxf6+ {[%emt 0:02:16]} exf6 {[%emt 0:00:34]} 25. Qf3 {[%emt 0:03:23]} Ne5 {[%emt 0:00:42]} 26. Qg3 {[%emt 0:01:14]} Rd8 {[%emt 0:03:06]} 27. Bf4 {[%emt 0:02:54]} Rxd1 {[%emt 0:02:38]} 28. Rxd1 {[%emt 0:00:41]} Re7 {[%emt 0:01:43]} 29. Nd5 {[%emt 0:02:40]} Rd7 {[%emt 0:01:17]} 30. Bxe5 {[%emt 0:03:09]} fxe5 {[%emt 0:00:26]} 31. Qg4 {[%emt 0:01:52]} Rf7 {[%emt 0:02:09]} 32. Qc4 {[%emt 0:02:57]} Rf8 {[%emt 0:02:42]} 33. Qc7 {[%emt 0:01:55]} Qa4 {[%emt 0:01:18]} 34. Nc3 {[%emt 0:01:23]} Qf4 {[%emt 0:00:28]} 35. Rf1 {[%emt 0:01:02]} Rf7 {[%emt 0:00:18]} 36. Qc6 {[%emt 0:00:38]} Bf8 {[%emt 0:01:39]} 37. Nd5 {[%emt 0:01:20]} Qf5 {[%emt 0:00:49]} 38. Ne3 {[%emt 0:00:44]} Qf4 {[%emt 0:00:16]} 39. g3 {[%emt 0:01:32]} Qg5 {[%emt 0:01:09]} 40. Qe8 {[%emt 0:00:46]} Kg7 {[%emt 0:01:03]} 41. Qb5 {[%emt 0:00:00]} Bc5 {[%emt 0:00:00]} 42. Qe2 {[%emt 0:01:11]} e4 {[%emt 0:00:00]} 43. h4 {[%emt 0:06:17]} Qe5 {[%emt 0:00:00]} 44. Kh2 {[%emt 0:02:45]} Rf3 {[%emt 0:00:00]} 45. Re1 {[%emt 0:04:34]} Bxe3 {[%emt 0:00:00]} 46. Qa6 {[%emt 0:02:47]} Rxf2+ {[%emt 0:00:00]} 47. Kh1 {[%emt 0:00:34]} Qe6 {[%emt 0:00:00]} 48. Qb7+ {[%emt 0:00:35]} Rf7 {[%emt 0:00:00]} 49. Qxf7+ {[%emt 0:00:37]} Qxf7 {[%emt 0:00:00]} 50. Rxe3 {[%emt 0:00:15]} Qf1+ {[%emt 0:00:00]} 51. Kh2 {[%emt 0:00:03]} Qf2+ {[%emt 0:00:00]} 52. Kh3 {[%emt 0:00:06]} Qxe3 {[%emt 0:00:00]} 53. h5 {[%emt 0:00:27]} Qf3 {[%emt 0:00:00]} 54. a4 {[%emt 0:00:12]} gxh5 {[%emt 0:00:00]} 55. Kh2 {[%emt 0:00:10]} e3 {[%emt 0:00:00]} 56. a5 {[%emt 0:00:07]} e2 {[%emt 0:00:00]} 57. a6 {[%emt 0:00:05]} e1=R {[%emt 0:00:13]} 58. b4 {[%emt 0:00:11]} Rh1# {[%emt 0:00:00]} 0-1

[Event "GER-ch Youth-U12 2024"]
[Site "Willingen"]
[Date "2024.05.22"]
[Round "5"]
[White "Subocz, Barbara"]
[Black "Obermair, Hannes"]
[Result "0-1"]
[ECO "B22"]
[WhiteElo "1692"]
[BlackElo "1668"]
[Annotator "NA RC"]
[PlyCount "74"]
[EventDate "2022.06.05"]
[EventType "swiss"]
[EventRounds "9"]
[EventCountry "GER"]
[SourceTitle "playchess.com"]
[Source "ChessBase"]
[SourceQuality "1"]
[TimeControl "40/4500+30:900+30"]

1. e4 {[%emt 0:00:00]} c5 {[%emt 0:00:00]} 2. Nf3 {[%emt 0:00:00]} Nc6 {[%emt 0:00:00]} 3. c3 {[%emt 0:00:00]} Nf6 {[%emt 0:00:00]} 4. e5 {[%emt 0:00:00]} Nd5 {[%emt 0:00:00]} 5. d4 {[%emt 0:00:00]} cxd4 {[%emt 0:00:00]} 6. cxd4 {[%emt 0:00:00]} d6 {[%emt 0:00:00]} 7. Bc4 {[%emt 0:00:00]} dxe5 {[%emt 0:00:00]} 8. dxe5 {[%emt 0:00:00]} e6 {[%emt 0:00:00]} 9. O-O {[%emt 0:00:00]} Be7 {[%emt 0:00:00]} 10. Qe2 {[%emt 0:00:00]} O-O {[%emt 0:00:00]} 11. Rd1 {[%emt 0:00:00]} Qd7 {[%emt 0:09:24]} 12. Bd2 {[%emt 0:00:00]} Qc7 {[%emt 0:05:20]} 13. Nc3 {[%emt 0:06:16]} Nxc3 {[%emt 0:01:43]} 14. Bxc3 {[%emt 0:00:19]} a6 {[%emt 0:02:16]} 15. Bd3 {[%emt 0:08:26]} b5 {[%emt 0:06:09]} 16. a3 {[%emt 0:03:18]} Bb7 {[%emt 0:04:42]} 17. b4 {[%emt 0:04:10]} Rac8 {[%emt 0:04:13]} 18. Bd2 {[%emt 0:03:46]} Rfd8 {[%emt 0:02:45]} 19. Qe4 {[%emt 0:11:42]} g6 {[%emt 0:02:06]} 20. Qe3 {[%emt 0:05:12]} Rd7 {[%emt 0:07:58]} 21. Be2 {[%emt 0:01:36]} Rcd8 {[%emt 0:02:06]} 22. Ng5 {[%emt 0:02:00]} Qxe5 {[%emt 0:01:41]} 23. Nf3 {[%emt 0:01:54]} Qg7 {[%emt 0:03:37]} 24. Bc3 {[%emt 0:02:02]} Bf6 {[%emt 0:01:40]} 25. Bxf6 {[%emt 0:00:38]} Qxf6 {[%emt 0:00:20]} 26. Qh6 {[%emt 0:01:07]} Nd4 {[%emt 0:03:59]} 27. Nxd4 {[%emt 0:01:08]} Rxd4 {[%emt 0:00:11]} 28. Rxd4 {[%emt 0:00:22]} Rxd4 {[%emt 0:00:43]} 29. Rc1 {[%emt 0:01:04]} Rd8 {[%emt 0:02:12]} 30. h4 {[%emt 0:00:55]} Qb2 {[%emt 0:01:59]} 31. Rc7 {[%emt 0:03:25]} Qxe2 {[%emt 0:03:59]} 32. Rxb7 {[%emt 0:00:14]} Qe1+ {[%emt 0:00:07]} 33. Kh2 {[%emt 0:00:18]} Qxf2 {[%emt 0:00:27]} 34. Qg5 {[%emt 0:01:16]} Qd4 {[%emt 0:01:50]} 35. Qe7 {[%emt 0:02:25]} Qf4+ {[%emt 0:00:42]} 36. Kh3 {[%emt 0:00:27]} Rd3+ {[%emt 0:00:09]} 37. g3 {[%emt 0:00:22]} Qxg3# {[%emt 0:00:38]} 0-1

[Event "GER-ch Youth-U12 2024"]
[Site "Willingen"]
[Date "2024.05.22"]
[Round "5"]
[White "Balashvili, Amiran"]
[Black "Rinke, Alexander"]
[Result "1-0"]
[ECO "B13"]
[WhiteElo "1682"]
[BlackElo "1596"]
[Annotator "NA RC"]
[PlyCount "75"]
[EventDate "2022.06.05"]
[EventType "swiss"]
[EventRounds "9"]
[EventCountry "GER"]
[SourceTitle "playchess.com"]
[Source "ChessBase"]
[SourceQuality "1"]
[TimeControl "40/4500+30:900+30"]

1. e4 {[%emt 0:00:00]} c6 {[%emt 0:00:00]} 2. d4 {[%emt 0:00:00]} d5 {[%emt 0:00:00]} 3. exd5 {[%emt 0:00:00]} cxd5 {[%emt 0:00:00]} 4. Bd3 {[%emt 0:00:00]} Nc6 {[%emt 0:00:00]} 5. c3 {[%emt 0:00:00]} Nf6 {[%emt 0:00:00]} 6. h3 {[%emt 0:00:00]} e6 {[%emt 0:00:00]} 7. Nf3 {[%emt 0:00:00]} Be7 {[%emt 0:00:00]} 8. Be3 {[%emt 0:00:00]} O-O {[%emt 0:00:00]} 9. Nbd2 {[%emt 0:00:00]} a6 {[%emt 0:00:00]} 10. Qc2 {[%emt 0:00:00]} Bd7 {[%emt 0:04:27]} 11. O-O {[%emt 0:03:55]} Rc8 {[%emt 0:08:05]} 12. Qd1 {[%emt 0:02:45]} b5 {[%emt 0:06:44]} 13. Qe2 {[%emt 0:02:41]} Na5 {[%emt 0:06:38]} 14. Rfc1 {[%emt 0:03:46]} Nc4 {[%emt 0:05:00]} 15. b3 {[%emt 0:02:08]} Nxe3 {[%emt 0:01:43]} 16. fxe3 {[%emt 0:00:04]} Rb8 {[%emt 0:17:34]} 17. Ne5 {[%emt 0:04:37]} Ne8 {[%emt 0:03:27]} 18. Nxd7 {[%emt 0:04:40]} Qxd7 {[%emt 0:00:09]} 19. a4 {[%emt 0:02:19]} Nd6 {[%emt 0:01:54]} 20. axb5 {[%emt 0:00:55]} axb5 {[%emt 0:00:13]} 21. Rc2 {[%emt 0:09:01]} Rfc8 {[%emt 0:02:29]} 22. Rac1 {[%emt 0:02:28]} Bg5 {[%emt 0:07:46]} 23. Nf3 {[%emt 0:07:01]} Bf6 {[%emt 0:03:27]} 24. Nd2 {[%emt 0:04:16]} e5 {[%emt 0:04:47]} 25. dxe5 {[%emt 0:01:24]} Bxe5 {[%emt 0:00:18]} 26. Qh5 {[%emt 0:03:10]} Qe6 {[%emt 0:03:29]} 27. Qxh7+ {[%emt 0:00:33]} Kf8 {[%emt 0:00:03]} 28. Qh8+ {[%emt 0:00:56]} Ke7 {[%emt 0:00:13]} 29. Qh4+ {[%emt 0:00:05]} Bf6 {[%emt 0:00:23]} 30. Qe1 {[%emt 0:00:35]} Bg5 {[%emt 0:02:44]} 31. Nf1 {[%emt 0:00:32]} Rh8 {[%emt 0:04:10]} 32. Qe2 {[%emt 0:02:30]} Bh4 {[%emt 0:03:48]} 33. Qf3 {[%emt 0:01:38]} Rbg8 {[%emt 0:01:07]} 34. Re2 {[%emt 0:01:27]} f5 {[%emt 0:00:56]} 35. g3 {[%emt 0:00:23]} Bf6 {[%emt 0:00:33]} 36. g4 {[%emt 0:02:34]} fxg4 {[%emt 0:00:03]} 37. Qxg4 {[%emt 0:00:01]} Rxh3 {[%emt 0:00:02]} 38. Qg3 {[%emt 0:00:05]} 1-0

[Event "GER-ch Youth-U12 2024"]
[Site "Willingen"]
[Date "2024.05.22"]
[Round "5"]
[White "Heitmann, Erik"]
[Black "Vinogradov, Ilia"]
[Result "0-1"]
[ECO "D93"]
[WhiteElo "1644"]
[BlackElo "1723"]
[Annotator "NA RC"]
[PlyCount "74"]
[EventDate "2022.06.05"]
[EventType "swiss"]
[EventRounds "9"]
[EventCountry "GER"]
[SourceTitle "playchess.com"]
[Source "ChessBase"]
[SourceQuality "1"]
[TimeControl "40/4500+30:900+30"]

1. Nf3 {[%emt 0:00:00]} Nf6 {[%emt 0:00:48]} 2. e3 {[%emt 0:00:00]} g6 {[%emt 0:00:58]} 3. d4 {[%emt 0:00:00]} Bg7 {[%emt 0:00:00]} 4. c4 {[%emt 0:00:00]} c5 {[%emt 0:00:00]} 5. Nc3 {[%emt 0:00:00]} cxd4 {[%emt 0:00:00]} 6. exd4 {[%emt 0:00:00]} d5 {[%emt 0:00:00]} 7. Bf4 {[%emt 0:00:00]} O-O {[%emt 0:00:00]} 8. Qb3 {[%emt 0:00:00]} dxc4 {[%emt 0:00:00]} 9. Bxc4 {[%emt 0:00:31]} Nc6 {[%emt 0:00:16]} 10. Ne5 {[%emt 0:07:44]} Nxe5 {[%emt 0:19:24]} 11. Bxe5 {[%emt 0:06:27]} b6 {[%emt 0:13:21]} 12. f3 {[%emt 0:03:11]} Bb7 {[%emt 0:03:36]} 13. O-O {[%emt 0:00:42]} Rc8 {[%emt 0:01:28]} 14. Rfd1 {[%emt 0:03:28]} a6 {[%emt 0:24:25]} 15. a4 {[%emt 0:01:18]} e6 {[%emt 0:00:21]} 16. d5 {[%emt 0:03:48]} exd5 {[%emt 0:03:16]} 17. Nxd5 {[%emt 0:00:16]} Nxd5 {[%emt 0:02:05]} 18. Bxg7 {[%emt 0:02:50]} Kxg7 {[%emt 0:00:12]} 19. Bxd5 {[%emt 0:00:27]} Qc7 {[%emt 0:01:00]} 20. Bxb7 {[%emt 0:00:11]} Qxb7 {[%emt 0:00:09]} 21. Rd6 {[%emt 0:01:14]} b5 {[%emt 0:00:56]} 22. axb5 {[%emt 0:01:20]} axb5 {[%emt 0:02:11]} 23. Raa6 {[%emt 0:01:56]} Rc5 {[%emt 0:00:09]} 24. Rdb6 {[%emt 0:03:51]} Rc1+ {[%emt 0:03:52]} 25. Kf2 {[%emt 0:00:33]} Qe7 {[%emt 0:00:22]} 26. f4 {[%emt 0:07:59]} Rd8 {[%emt 0:03:04]} 27. Kg3 {[%emt 0:02:43]} Qe4 {[%emt 0:01:32]} 28. Rd6 {[%emt 0:02:43]} Qe1+ {[%emt 0:01:23]} 29. Kh3 {[%emt 0:00:41]} Rdc8 {[%emt 0:01:59]} 30. Ra7 {[%emt 0:01:01]} R8c3+ {[%emt 0:00:46]} 31. bxc3 {[%emt 0:00:29]} Rxc3+ {[%emt 0:00:05]} 32. Rd3 {[%emt 0:00:06]} Rxb3 {[%emt 0:00:10]} 33. Rxb3 {[%emt 0:00:07]} Qe6+ {[%emt 0:00:03]} 34. Kh4 {[%emt 0:00:17]} Qxb3 {[%emt 0:00:08]} 35. g4 {[%emt 0:00:11]} Qb2 {[%emt 0:00:42]} 36. h3 {[%emt 0:00:16]} Qf2+ {[%emt 0:00:09]} 37. Kg5 {[%emt 0:00:05]} h6# {[%emt 0:00:09]} 0-1